Cogmind - Beta 17 @@@ ROGUE MODE // 2026.07.05 @ 15:52:53 Player: naththebg Result: Destroyed by Triborg with Siege Cannon Performance ------------- Evolutions (0) 0 Regions Visited (4) 800 Robots Destroyed (36) 180 Value Destroyed (970) 970 Prototype IDs (18) 360 Alien Tech Used (0) 0 Bonus (9717) 9717 TOTAL SCORE: 12027 Bonus ------- Follower Combat Kills 397 Prayed to X0-1V1 5000 Major X0-1V1 Interference 4450 Friendly Fire -130 Cogmind --------- Core Integrity 0/500 Matter 70/300 Energy 310/310 System Corruption 3% Temperature Cool (6) Movement Core (250) Ox4 Location -7/Scraptown Parts ------- > --- POWER (2) -------- Fission Core > --- PROPULSION (2) --- (None) > --- UTILITY (3) ------ Self-contained Transmogrifier X0-1V1's Piety Tracker > --- WEAPON (1) ------- Falx (fused) > --- INVENTORY (5) ---- Scrap Shield Improved Shield Generator Powered Cannon Peak State ------------ > --- POWER ------------ Fission Core > --- PROPULSION ------- Medium Treads > --- UTILITY ---------- Improved Medium Armor Plating Self-contained Transmogrifier X0-1V1's Piety Tracker > --- WEAPON ----------- (None) > --- INVENTORY -------- Scrap Shield Improved Shield Generator Powered Cannon [Rating: 37] Favorites ----------- Power Ion Engine Engine Ion Engine Power Core Fission Core Propulsion Aluminum Leg Treads Spiked Treads Leg Aluminum Leg Wheel Subdweller Monowheel Utility X0-1V1's Piety Tracker Device X0-1V1's Piety Tracker Storage Medium Storage Unit Protection Makeshift Light Armor Plating Weapon Assault Rifle Energy Gun Subdweller Laser Energy Cannon Subdweller Beam Cannon Ballistic Gun Assault Rifle Launcher Grenade Launcher Impact Weapon Mace Slashing Weapon Axe Build | -11 -10 -10 -7 -7 ------- Run | Yrd Mat Sub Rec Scr Slots Evolved . | . . . . . Power . | . . . . . Propulsion . | . . . . . Utility . | . . . . . Weapon . | . . . . . Parts Attached 45 | 5 4 24 5 7 Power 6 | . 1 3 . 2 Engine 5 | . 1 3 . 1 Core 1 | . . . . 1 Reactor . | . . . . . Propulsion 12 | 2 1 8 . 1 Treads 1 | . . . . 1 Leg 7 | 2 1 4 . . Wheel 4 | . . 4 . . Hover . | . . . . . Flight . | . . . . . Utility 10 | 1 2 1 3 3 Device 5 | . 1 . 2 2 Storage 3 | 1 1 . 1 . Processor . | . . . . . Hackware . | . . . . . Protection 2 | . . 1 . 1 Artifact . | . . . . . Weapon 17 | 2 . 12 2 1 Energy Gun 4 | . . 3 . 1 Energy Cannon 1 | . . 1 . . Ballistic Gun 8 | 2 . 6 . . Ballistic Cannon . | . . . . . Launcher 3 | . . 2 1 . Special Weapon . | . . . . . Impact Weapon . | . . . . . Slashing Weapon 1 | . . . 1 . Piercing Weapon . | . . . . . Special Melee Weapon . | . . . . . Unidentified Prototypes 2 | . 1 . . 1 Corrupted Parts 1 | . . . . 1 System Corruption 3 | . . . . 3 Parts Lost 19 | . . 8 9 2 Power 3 | . . 2 1 . Propulsion 7 | . . 4 2 1 Utility 4 | . . . 3 1 Weapon 5 | . . 2 3 . Highest Loss Streak 8 | . . 2 8 1 To Critical Strikes . | . . . . . Average Backups 7 | 4 7 8 9 2 Power 1 | . 1 1 1 . Propulsion 2 | 3 3 2 . . Utility 1 | . . 1 1 1 Weapon 2 | . 2 2 4 1 Tool/Special . | . . . . . Unused Backups 23 | . 2 14 4 3 Power 2 | . . 1 1 . Propulsion 10 | . 2 7 1 . Utility 4 | . . 1 1 2 Weapon 7 | . . 5 1 1 Tool/Special . | . . . . . Average Slot Usage (%) 86 | . 88 94 73 49 Engine 11 | . 11 11 18 . Treads 1 | . . . . 8 Leg 23 | . 29 30 . . Wheel 4 | . . 4 17 . Device 13 | . 4 12 17 24 Storage 10 | . 13 12 8 . Protection 1 | . . 1 . 6 Energy Gun 1 | . . 2 . . Energy Cannon 1 | . . . 8 . Ballistic Gun 14 | . 27 16 . . Peak Build Rating 37 | 5 20 33 35 37 Average Rating 24 | 3 11 26 25 31 On Entrance 14 | . 5 20 28 18 Avg Prop Armor Cover (%) 9 | . . 12 5 . Naked Turns . | . . . . . Heaviest Build 48 | 9 20 37 48 18 Greatest Support 40 | 20 30 40 40 28 Greatest Overweight (x) 2 | 1 . 1 2 1 Average Overweight (x) . | . . . 1 . Largest Inventory Capacity 15 | 8 10 10 15 5 Average Capacity 9 | 6 8 10 12 5 Most Carried 14 | 7 8 10 14 5 Average Carried 8 | 4 7 9 11 4 Final Capacity 10 | 8 10 10 5 5 Final Carried 10 | 7 7 10 5 5 Transmogrified Parts 3 | . . . . 3 Integrity Recovered 68 | . . . . 68 Class Distribution -------------------- 80% | Mutant 17% | Scavenger-Mutant Dominant Class ---------------- Mutant | -10/Materials Mutant | -10/Subcaves Mutant | -7/Recycling Mutant | -7/Scraptown Resources | -11 -10 -10 -7 -7 ----------- Run | Yrd Mat Sub Rec Scr Matter Collected 1878 | 192 195 1441 50 . Remotely . | . . . . . Salvage Created 1261 | . 271 807 183 . Parts 67 | . 11 53 3 . Haulers Intercepted . | . . . . . Recyclers Shooed 1 | . 1 . . . Parts Field Recycled . | . . . . . Retrieved Matter . | . . . . . Parts Self-Destructed 34 | . . 34 . . Prevented . | . . . . . Parts Restored . | . . . . . Kills | -11 -10 -10 -7 -7 ------- Run | Yrd Mat Sub Rec Scr Combat Hostiles Destroyed 32 | . 3 26 3 . Melee 1 | . . . 1 . Guns 22 | . 3 19 . . AOE 9 | . . 7 2 . Classes Destroyed 6 | . 2 4 . . Recycler 3 | . 2 . 1 . Swarmer 12 | . . 12 . . Grunt 8 | . 3 5 . . Sentry 4 | . . 1 3 . Subdweller 8 | . . 8 . . Mutant 1 | . . 1 . . Best Kill Streak 5 | . 2 5 4 . Combat Bots Only 5 | . 2 5 3 . Max Kills in Single Turn 3 | . 1 3 1 . Gunslinging 1 | . . 1 . . Exploded 3 | . . 3 1 . Melee 1 | . . . 1 . Uniques/NPCs Destroyed . | . . . . . Combat | -11 -10 -10 -7 -7 -------- Run | Yrd Mat Sub Rec Scr Hostile Shots Fired 349 | . 10 123 207 9 Missed 112 | . 5 28 79 . Hits 237 | . 5 95 128 9 Projectile 237 | . 5 95 128 9 Critical Strikes 2 | . . 1 . 1 Damage Taken 3032 | . 54 1352 1192 434 Core 874 | . 10 278 462 124 Absorbed by Shields . | . . . . . Ignored by Resistances 25 | . . 25 . . Core Remaining (%) 100 | 100 . . . . Volleys Fired 167 | . 22 135 8 2 Largest 2 | . 2 2 1 1 Hottest 93 | . 40 93 40 75 Shots Fired 247 | . 44 190 10 3 Gun 227 | . 44 180 . 3 Cannon 2 | . . . 2 . Launcher 18 | . . 10 8 . Special . | . . . . . Kinetic 196 | . 44 144 8 . Thermal 41 | . . 36 2 3 Explosive 10 | . . 10 . . Electromagnetic . | . . . . . Robot Hit Streak 27 | . 11 27 9 2 Robot Miss Streak 6 | . 2 6 1 1 Penetration Max . | . . . . . Secondary Targets 2 | . . 2 . . Max Gunslinging Chain 1 | . . 1 . . Shots Hit Robots 153 | . 29 110 12 2 Core Hits 74 | . 12 54 7 1 Critical Kills . | . . . . . Critical Parts Destroyed 1 | . 1 . . . Critical Strikes 4 | . 1 2 1 . Burn 2 | . . 2 . . Destroy 1 | . 1 . . . Sever 1 | . . . 1 . Melee Attacks 4 | . . . 3 1 Impact . | . . . . . Slashing 4 | . . . 3 1 Piercing . | . . . . . Sneak Attacks . | . . . . . Combat Hostiles . | . . . . . Follow-up Attacks . | . . . . . Damage Inflicted 3565 | . 367 2452 704 42 Guns 2305 | . 367 1896 . 42 Cannons . | . . . . . Explosions 1146 | . . 555 591 . Melee 113 | . . . 113 . Ramming 1 | . . 1 . . Kinetic 2621 | . 367 1663 591 . Thermal 275 | . . 233 . 42 Explosive 555 | . . 555 . . Electromagnetic . | . . . . . Impact . | . . . . . Slashing 113 | . . . 113 . Piercing . | . . . . . Highest Corruption 15 | . . 15 13 3 Average Corruption 8 | . . 8 13 3 Corruption Purged . | . . . . . Corruption Blocked . | . . . . . Effects 50 | . . 48 1 1 Message Errors 10 | . . 10 . . Matter Fused 14 | . . 13 1 . Heat Flow Errors 4 | . . 4 . . Energy Discharges 10 | . . 10 . . Parts Fused 1 | . . 1 . . Data Loss (minor) 6 | . . 6 . . Data Loss (major) 3 | . . 2 . 1 Misfires 1 | . . 1 . . Weapon Failures 1 | . . 1 . . Overload Shots . | . . . . . Overflow Damage 37 | . . 21 16 . Projectiles . | . . . . . Explosions 37 | . . 21 16 . Melee . | . . . . . Knockbacks . | . . . . . Impact . | . . . . . Kinetic . | . . . . . Secondary . | . . . . . Self-Inflicted Damage 324 | . . 116 208 . Shots 15 | . . 7 8 . Rammed . | . . . . . Targets Rammed 1 | . . 1 . . Kicked 1 | . . 1 . . Crushed . | . . . . . Highest Temperature 126 | . . 109 126 104 Average Temperature 51 | . . 44 61 44 Received Heat Transfer 551 | . 30 165 306 50 Siege Activations . | . . . . . Martial Activations . | . . . . . Shielding Activations . | . . . . . Robots Disrupted . | . . . . . Combat Hostiles . | . . . . . Robots Corrupted . | . . . . . Combat Hostiles . | . . . . . Parts Fried . | . . . . . Impact Corruptions . | . . . . . Robots Melted . | . . . . . Combat Hostiles . | . . . . . Parts Melted . | . . . . . Heat Transferred 607 | . . 533 . 74 Parts Sabotaged . | . . . . . Parts Stolen . | . . . . . Parts Stripped . | . . . . . Power Chain Reactions . | . . . . . Alert | -11 -10 -10 -7 -7 ------- Run | Yrd Mat Sub Rec Scr Maximum Alert Level . | . . . . . Low Security (%) 100 | 100 100 . 100 . Level 1 . | . . . . . Level 2 . | . . . . . Level 3 . | . . . . . Level 4 . | . . . . . Level 5 . | . . . . . High Security . | . . . . . Max Security . | . . . . . Peak Influence 55 | . 40 . 55 . Initial 21 | . . . 21 . Average 8 | . 6 . 13 . Influence Increases 641 | . 80 403 158 . Destroy 0b10 Robot/C 500 | . 60 360 80 . Destroy 0b10 Robot/NC 15 | . 10 . 5 . Destroy Leader 20 | . 10 10 . . Allied During Kill 5 | . . 3 2 . Select Force Hacks 30 | . . . 30 . Destroy Structure 41 | . . . 41 . Lose Combat Pursuer 30 | . . 30 . . Influence Decreases 641 | . 58 379 199 5 Entered New Map 41 | . . 11 25 5 Time Decay 463 | . 58 298 107 . Lost Part 102 | . . 50 52 . Lost Ally 35 | . . 20 15 . Squads Dispatched 2 | . 1 . 1 . Investigation 1 | . 1 . . . Extermination 1 | . . . 1 . Reinforcement . | . . . . . Assault . | . . . . . Garrison . | . . . . . Intercept . | . . . . . Searches Triggered . | . . . . . Construction Impeded . | . . . . . Haulers Reinforced . | . . . . . Active Scanning Responses . | . . . . . Cargo Convoy Interrupts . | . . . . . Stealth | -11 -10 -10 -7 -7 --------- Run | Yrd Mat Sub Rec Scr Distress Signals . | . . . . . Communications Jammed . | . . . . . Distress Signals . | . . . . . Times Spotted 66 | . 4 36 6 20 Peak Tracking Total 13 | . 3 4 3 13 Tactical Retreats 2 | . . 2 . . Traps | -11 -10 -10 -7 -7 ------- Run | Yrd Mat Sub Rec Scr Traps Triggered 1 | . 1 . . . Indirectly . | . . . . . Trap Hack Attempts . | . . . . . Triggered . | . . . . . Disarmed . | . . . . . Reprogrammed . | . . . . . Reused . | . . . . . Traps Extracted . | . . . . . Installed . | . . . . . Triggered . | . . . . . Machines | -11 -10 -10 -7 -7 ---------- Run | Yrd Mat Sub Rec Scr Machines Disabled 6 | . . 3 . 3 Max in Single Turn 1 | . . 1 . . Machines Repaired . | . . . . . Machines Dismantled . | . . . . . Machines Sabotaged . | . . . . . Overloaded Fab Kills . | . . . . . Hacking | -11 -10 -10 -7 -7 --------- Run | Yrd Mat Sub Rec Scr Machines Accessed 4 | . 2 1 1 . Terminals 1 | . 1 . . . Fabricators . | . . . . . Repair Stations . | . . . . . Recycling Units 2 | . 1 . 1 . Scanalyzers . | . . . . . Garrison Access . | . . . . . Total Hacks 6 | . 2 1 3 . Successful 4 | . . 1 3 . Failed 2 | . 2 . . . Catastrophic 1 | . 1 . . . Database Lockouts . | . . . . . Manual 2 | . 1 . 1 . Terminals 1 | . 1 . . . Fabricators . | . . . . . Repair Stations . | . . . . . Recycling Units 4 | . 1 . 3 . Scanalyzers . | . . . . . Garrison Access . | . . . . . Terminal Hacks 1 | . . 1 . . Proto ID Catalog 1 | . . 1 . . Fabricator Hacks . | . . . . . Repair Station Hacks . | . . . . . Recycling Unit Hacks 2 | . . . 2 . Retrieve Components 2 | . . . 2 . Scanalyzer . | . . . . . Garrison Access Hacks . | . . . . . Unauthorized Hacks 1 | . . . 1 . Terminals . | . . . . . Fabricators . | . . . . . Repair Stations . | . . . . . Recycling Units 1 | . . . 1 . Tunnel 1 | . . . 1 . Scanalyzers . | . . . . . Garrison Access . | . . . . . Data Cores Recovered . | . . . . . Used . | . . . . . Hacking Detections 1 | . 1 . . . Full Trace Events . | . . . . . Feedback Events . | . . . . . Feedback Blocked . | . . . . . Robot Schematics Acquired . | . . . . . Robots Built . | . . . . . Authchips . | . . . . . Time . | . . . . . Total Robot Build Rating . | . . . . . Part Schematics Acquired . | . . . . . Parts Built . | . . . . . Authchips . | . . . . . Time . | . . . . . Total Part Build Rating . | . . . . . Part Studies Acquired . | . . . . . Parts Repaired . | . . . . . Time . | . . . . . Parts Recycled . | . . . . . Recycled Matter . | . . . . . Retrieved Matter . | . . . . . Retrieved Components . | . . . . . Parts Scanalyzed . | . . . . . Part Schematics Acquired . | . . . . . Parts Damaged . | . . . . . Bothacking | -11 -10 -10 -7 -7 ------------ Run | Yrd Mat Sub Rec Scr Used RIF Installer . | . . . . . Robots Hacked . | . . . . . Non-combat . | . . . . . Combat . | . . . . . Robot Hacks Applied . | . . . . . Relay Couplers Released . | . . . . . Fabnet Peak Effective % . | . . . . . Robots Rewired . | . . . . . Allies Hacked . | . . . . . Hacks Repelled . | . . . . . Allies | -11 -10 -10 -7 -7 -------- Run | Yrd Mat Sub Rec Scr Total Allies 8 | . . 7 . 1 Largest Group 3 | . . 3 2 1 Highest-Rated Group 446 | . . 73 16 446 Highest-Rated Ally 446 | . . 57 8 446 Total Orders . | . . . . . Ally Attacks 43 | . . 10 6 27 Total Damage 2722 | . . 220 67 2435 Kills 15 | . . 2 1 12 Allies Corrupted . | . . . . . Allies Melted . | . . . . . X0-1V1 Amusement Gains 117 | . 8 . 15 94 Good Acts 55 | . 2 44 9 . Bad Acts 49 | . . 38 11 . Intel | -11 -10 -10 -7 -7 ------- Run | Yrd Mat Sub Rec Scr Active Infowar (turns) 263 | . . . 263 . Triangulation 263 | . . . 263 . Robot Analysis Total . | . . . . . Derelict Logs Recovered 3 | . . 2 . 1 Drone Launches . | . . . . . Drone Recoveries . | . . . . . Exploration | -11 -10 -10 -7 -7 ------------- Run | Yrd Mat Sub Rec Scr Turns Passed 3824 | 52 467 2479 363 463 Spaces Moved 2648 | 34 220 1677 296 421 Core 338 | 11 . . 102 225 Treads 196 | . . . . 196 Legs 1597 | 23 220 1354 . . Wheels 517 | . . 323 194 . Hover . | . . . . . Flight . | . . . . . Fastest Speed 50 | 50 120 110 50 50 Average Speed 115 | 98 120 119 110 102 Slowest Speed 160 | 120 120 126 130 160 Overloaded Moves . | . . . . . Propulsion Burnouts . | . . . . . Robots Hopped . | . . . . . Potential Cave-ins . | . . . . . Cave-ins Triggered . | . . . . . Exploration Rate (%) 46 | 3 38 78 71 42 Regions Visited 4 Branch Regions 3 Pre-discovered Areas 5 | . . 2 1 2 Known Exits Taken 2 | . . 1 1 . Unknown Exits Taken 2 | 1 1 . . . Scrap Searched 10 | . . 9 . 1 Spaces Dug 3 | . . 3 . . Terrain Destroyed 76 | . . 35 41 . Melee . | . . . . . Projectile 6 | . . 4 2 . AOE 70 | . . 31 39 . Terrain Rammed . | . . . . . Walls Destroyed . | . . . . . Machines Disabled . | . . . . . Actions | -11 -10 -10 -7 -7 --------- Run | Yrd Mat Sub Rec Scr Total 3158 | 50 380 1963 319 446 Wait 211 | 4 128 70 . 9 Move 2644 | 33 219 1676 295 421 Hop . | . . . . . Pick Up 41 | 8 4 23 4 2 Fast Attach 19 | 4 1 7 2 5 Attach 16 | 1 2 8 3 2 Detach 1 | . . . . 1 Swap 18 | . 1 16 1 . Drop 32 | . 3 23 3 3 Fire 167 | . 22 135 8 2 Melee 4 | . . . 3 1 Ram . | . . . . . Kick 1 | . . 1 . . Crush . | . . . . . Escape Stasis . | . . . . . Rewire 4 | . . 4 . . Trap . | . . . . . Miscellaneous . | . . . . . Route ------- -11/Scrapyard -10/Materials (discovered 3 exits: [*Mat] / [*Min] / *Sub) -10/Subcaves (discovered 2 exits: *Mat / *Rec) -7/Recycling (discovered 2 exits: [*Fac] / *Scr) -7/Scraptown (discovered 1 exit: [*Fac]) History --------- Turn | Location | Event 12 | -11/Scrapyard | Discovered new exit (range 15) 53 | -11/Scrapyard | Entered Materials 196 | -10/Materials | Discovered new exit (range 15) 287 | -10/Materials | Discovered new exit (range 7) 314 | -10/Materials | Build established: Mutant 336 | -10/Materials | Prayed at D.C.S.S. Altar Unit 378 | -10/Materials | Propulsion slot count permanently improved by X0-1V1 (+1) 450 | -10/Materials | Discovered new exit (range 16) 520 | -10/Materials | Entered Subcaves 521 | -10/Subcaves | Approached by a straggling Scientist 628 | -10/Subcaves | Learned location of Zion (-6) 628 | -10/Subcaves | Met a Zionite searching for "candidates" 637 | -10/Subcaves | Learned Materials stockpile data 673 | -10/Subcaves | A swath of the cavern ceiling suddenly collapsed 761 | -10/Subcaves | Energy generation permanently improved by X0-1V1 (+10; -100 max core) 1094 | -10/Subcaves | X0-1V1 activates XOMVISION 1154 | -10/Subcaves | Identified exit to Materials 1154 | -10/Subcaves | X0-1V1 revealed exit location to -8/Materials 1160 | -10/Subcaves | Core integrity permanently improved by X0-1V1 (+350) 1170 | -10/Subcaves | Ambushed by Subdwellers from Twisted Machinery 1182 | -10/Subcaves | X0-1V1 sent allied G-34 Mercenary (x2) 1199 | -10/Subcaves | X0-1V1 mutated your Weapon slot to Utility slot 1210 | -10/Subcaves | Shifting Twisted Machinery released Sub. Optics 1210 | -10/Subcaves | X0-1V1 tapped a No Entrance sign 1218 | -10/Subcaves | X0-1V1 rewrote G-34 Mercenary IFF filter 1228 | -10/Subcaves | Identified exit to Recycling 1228 | -10/Subcaves | X0-1V1 revealed exit location to -7/Recycling 1230 | -10/Subcaves | X0-1V1 sent hostile S-10 Pest (x4) 1259 | -10/Subcaves | X0-1V1 mutated your Utility slot to Weapon slot 1280 | -10/Subcaves | X0-1V1 sent you into danger 1285 | -10/Subcaves | X0-1V1 upgraded hostiles (x1) 1292 | -10/Subcaves | X0-1V1 turns hostiles against one another 1502 | -10/Subcaves | X0-1V1 sent hostile G-34 Mercenary (x3) 1695 | -10/Subcaves | Shifting Twisted Machinery released Flamer 1808 | -10/Subcaves | Build established: Scavenger-Mutant 1916 | -10/Subcaves | A swath of the cavern ceiling suddenly collapsed 1959 | -10/Subcaves | Discovered exit to Materials (range 5) 2156 | -10/Subcaves | Shifting Twisted Machinery released Battle Rifle 2195 | -10/Subcaves | Visited 4L-MR0's lab 2206 | -10/Subcaves | Found Prototype Device 2213 | -10/Subcaves | Found Powered Cannon 2214 | -10/Subcaves | X0-1V1 mutated your Weapon slot to Utility slot 2255 | -10/Subcaves | Shifting Twisted Machinery released Mak. Light Armor Plating 2386 | -10/Subcaves | Build established: Mutant 2435 | -10/Subcaves | System corruption reached 10% 2517 | -10/Subcaves | Core integrity restored by X0-1V1 (+95) 2521 | -10/Subcaves | X0-1V1 activates XOMVISION 2524 | -10/Subcaves | X0-1V1 sent hostile S-10 Pest (x3) 2554 | -10/Subcaves | X0-1V1 whisked you away to safety 2572 | -10/Subcaves | X0-1V1 mutated your Utility slot to Propulsion slot 2590 | -10/Subcaves | X0-1V1 sent hostile S-10 Pest (x4) 2675 | -10/Subcaves | X0-1V1 mutated your Propulsion slot to Power slot 2722 | -10/Subcaves | X0-1V1 activates XOMVISION 2826 | -10/Subcaves | Disturbed a concealed Subdweller 2832 | -10/Subcaves | X0-1V1 sent allied Chaos Knight (x1) 2849 | -10/Subcaves | Core integrity restored by X0-1V1 (+140) 2894 | -10/Subcaves | X0-1V1 rewrote Uskayaw IFF filter 2895 | -10/Subcaves | Spotted Uskayaw 2897 | -10/Subcaves | X0-1V1 sent allied G-34 Mercenary (x3) 2953 | -10/Subcaves | X0-1V1 mutated your Propulsion slot to Utility slot 2999 | -10/Subcaves | Entered Recycling 2999 | -7/Recycling | Accompanied by 2 allies 3008 | -7/Recycling | Identified exit to Scraptown 3008 | -7/Recycling | X0-1V1 revealed exit location to -7/Scraptown 3038 | -7/Recycling | X0-1V1 vaporized surrounding terrain (radius 19) 3242 | -7/Recycling | X0-1V1 sent you into danger 3263 | -7/Recycling | Core integrity fell below 50% 3279 | -7/Recycling | Core integrity fell below 20% 3299 | -7/Recycling | Lost 8 parts (1p2n2u3w) 3326 | -7/Recycling | Discovered new exit (range 16) 3337 | -7/Recycling | Scanned before Scraplab entrance 3352 | -7/Recycling | Entered Scraplab 3362 | -7/Recycling | Entered Scraptown 3365 | -7/Scraptown | Identified Sfc. Transmogrifier 3396 | -7/Scraptown | Learned location of Extension (-6) 3477 | -7/Scraptown | Visited The Evicted 3485 | -7/Scraptown | Visited Cyclists 3488 | -7/Scraptown | Visited Junk Repository 3585 | -7/Scraptown | Scanned Subdweller tech in exchange for log data 3590 | -7/Scraptown | Learned location of Warlord (-5) 3610 | -7/Scraptown | Discovered new exit (range 13) 3691 | -7/Scraptown | Visited Assassins FH 3723 | -7/Scraptown | Visited Awakened 3774 | -7/Scraptown | Visited Shadow of the Wyrm 3784 | -7/Scraptown | X0-1V1 brought Wyrm Statue to life 3784 | -7/Scraptown | Attacked by Scraptown defenders 3825 | -7/Scraptown | Destroyed by Triborg with Siege Cannon Last Messages --------------- 03821_ Bolt penetrates Chaos Wyrm. 03821_ Siege Slug penetrates Chaos Wyrm. 03821_ Bolt penetrates Chaos Wyrm. 03821_ 81-FIV(r) follow-up attacks with Ripteeth. 03822_ CZ-CO7(E) heat spikes uncontrollably. 03822_ 93-B77(x) destroyed. 03823_ Siege Slug penetrates Chaos Wyrm. 03823_ XU-BBD(r) follow-up attacks with Ripteeth. 03823_ Bolt penetrates Chaos Wyrm. 03823_ XU-BBD(r) follow-up attacks with Ripteeth. 03823_ Bolt penetrates Chaos Wyrm. 03824_ 81-FIV(r) destroyed. 03824_ XU-BBD(r) destroyed. 03824_ 4Y-5ES(r) destroyed. 03824_ Chaos Wyrm destroyed. 03825_ X0-1V1 is amused. 03825_ Penetrated by Siege Slug. 03825_ Spk. Treads destroyed. 03825_ Critical hit (Blast). 03825_ X0-1V1 chuckles heartily! Map ----- +----------------------------------------------------+ | " ?# #???????????????# #???????????? | | ??# #???????????????# #???????????? | | ???# #???????????????# #???????????? | | ?????# #???##??????????# #???????????? | | ?????# #??""#??????????# ###?????????? | | ?????# #?? #??????????# ""#"????????? | | ?????# #? #??????????# """"????????? | | ###### #? ##"#???????# ""##????????? | | [| # # #???????# ###?????????? | | | # # #??????????# #####???????? | | ### #??????????# "???????? | | # # #??????????# "???????? | | # # #??????????# "???????? | | # #?"X"#???""?????# "???????? | | ### # ##########;###### TT "???????? | | =! # h TT "???????? | | ! # j p "???????? | | ###### g "???????? | | ?????# E "???????? | | ###### "???????? | | #"???????? | | #????????? | | /%= ! #????????? | | ############ ### = [%=% #### ####????????? | | #????????? <<# ==%= #??# #???????????? | | #???????" <<< % @ #??# #???????????? | | #?????"" <<<# ##??# #???????????? | | #????#" " ""## #??# #???????????? | | #????#" " "#; %!%= #??# #???????????? | | #????#"" "" <;# / #??# #???????????? | | #????#"" """ <